[Event "Titled Tuesday Blitz March 15 Late 2022"]
[White "Odegov, Artem"]
[Black "Fiorito, Fabian"]
[WhiteFideId "34183644"]
[BlackFideId "100200"]
[WhiteElo "2286"]
[BlackElo "2395"]
[Result "1-0"]
[Round "10"]
[TimeControl "180+1"]
[Date "2022.03.16"]
[WhiteClock "0:03:02"]
[BlackClock "0:02:03"]

1. d4 {[%clk 0:03:00]}  Nf6 {[%clk 0:02:48]} 2. c4 {[%clk 0:03:00]}  b6 {[%clk 0:02:46]} 3. Nf3 {[%clk 0:03:00]}  Bb7 {[%clk 0:02:46]} 4. g3 {[%clk 0:03:00]}  g6 {[%clk 0:02:46]} 5. Bg2 {[%clk 0:03:00]}  Bg7 {[%clk 0:02:46]} 6. O-O {[%clk 0:03:01]}  O-O {[%clk 0:02:47]} 7. Nc3 {[%clk 0:03:01]}  d6 {[%clk 0:02:47]} 8. Qc2 {[%clk 0:03:01]}  Nbd7 {[%clk 0:02:47]} 9. e4 {[%clk 0:03:02]}  e5 {[%clk 0:02:47]} 10. d5 {[%clk 0:03:02]}  a5 {[%clk 0:02:47]} 11. Bg5 {[%clk 0:03:02]}  h6 {[%clk 0:02:47]} 12. Be3 {[%clk 0:03:02]}  Ne8 {[%clk 0:02:46]} 13. Rae1 {[%clk 0:03:02]}  Bc8 {[%clk 0:02:44]} 14. Nd2 {[%clk 0:03:01]}  Nc5 {[%clk 0:02:43]} 15. f4 {[%clk 0:03:01]}  exf4 {[%clk 0:02:41]} 16. gxf4 {[%clk 0:03:02]}  f5 {[%clk 0:02:41]} 17. e5 {[%clk 0:03:02]}  dxe5 {[%clk 0:02:38]} 18. fxe5 {[%clk 0:03:03]}  Bxe5 {[%clk 0:02:34]} 19. Bxc5 {[%clk 0:03:03]}  Bxc3 {[%clk 0:02:26]} 20. Bxf8 {[%clk 0:03:02]}  Bd4+ {[%clk 0:02:26]} 21. Kh1 {[%clk 0:03:02]}  Kxf8 {[%clk 0:02:25]} 22. Nf3 {[%clk 0:03:02]}  Bf6 {[%clk 0:02:23]} 23. Ne5 {[%clk 0:03:02]}  Nd6 {[%clk 0:02:23]} 24. Nxg6+ {[%clk 0:03:02]}  Kg7 {[%clk 0:02:22]} 25. Nf4 {[%clk 0:03:02]}  Bd7 {[%clk 0:02:21]} 26. Ne6+ {[%clk 0:03:03]}  Bxe6 {[%clk 0:02:21]} 27. Rxe6 {[%clk 0:03:04]}  Qf8 {[%clk 0:02:15]} 28. Bh3 {[%clk 0:03:03]}  Re8 {[%clk 0:02:09]} 29. Bxf5 {[%clk 0:03:03]}  Rxe6 {[%clk 0:02:09]} 30. Bxe6 {[%clk 0:03:04]}  Qe7 {[%clk 0:02:08]} 31. Rg1+ {[%clk 0:03:04]}  Bg5 {[%clk 0:02:03]} 32. h4 {[%clk 0:03:03]}  Qf6 {[%clk 0:02:03]} 33. hxg5 {[%clk 0:03:04]}  Qf3+ {[%clk 0:02:03]} 34. Qg2 {[%clk 0:03:03]}  Qh5+ {[%clk 0:02:03]} 35. Qh3 {[%clk 0:03:02]} 1-0


[Site "https://www.chess.com"]

[Event "Titled Tuesday Blitz March 15 Late 2022"]
[White "Oro, Luis"]
[Black "Janaszak, Dawid"]
[WhiteFideId "104094"]
[BlackFideId "1119206"]
[WhiteElo "2298"]
[BlackElo "2199"]
[Result "1-0"]
[Round "10"]
[TimeControl "180+1"]
[Date "2022.03.16"]
[WhiteClock "0:00:10"]
[BlackClock "0:00:13"]

1. e4 {[%clk 0:03:00]}  c5 {[%clk 0:02:58]} 2. Nf3 {[%clk 0:03:00]}  Nc6 {[%clk 0:02:58]} 3. d4 {[%clk 0:03:00]}  cxd4 {[%clk 0:02:59]} 4. Nxd4 {[%clk 0:03:01]}  e5 {[%clk 0:02:59]} 5. Nb5 {[%clk 0:03:01]}  d6 {[%clk 0:02:59]} 6. N1c3 {[%clk 0:03:01]}  a6 {[%clk 0:03:00]} 7. Na3 {[%clk 0:03:01]}  b5 {[%clk 0:02:57]} 8. Nd5 {[%clk 0:03:01]}  Nf6 {[%clk 0:02:54]} 9. Bg5 {[%clk 0:02:52]}  Be7 {[%clk 0:02:54]} 10. Bxf6 {[%clk 0:02:50]}  Bxf6 {[%clk 0:02:55]} 11. c3 {[%clk 0:02:49]}  Rb8 {[%clk 0:02:55]} 12. Nc2 {[%clk 0:02:47]}  Bg5 {[%clk 0:02:55]} 13. Be2 {[%clk 0:02:46]}  Ne7 {[%clk 0:02:55]} 14. Nce3 {[%clk 0:02:38]}  Be6 {[%clk 0:02:53]} 15. Bg4 {[%clk 0:02:32]}  Bxd5 {[%clk 0:02:43]} 16. Nxd5 {[%clk 0:02:32]}  a5 {[%clk 0:02:37]} 17. O-O {[%clk 0:02:26]}  O-O {[%clk 0:02:36]} 18. Qd3 {[%clk 0:02:24]}  b4 {[%clk 0:02:35]} 19. c4 {[%clk 0:02:19]}  Nc6 {[%clk 0:02:31]} 20. Rad1 {[%clk 0:02:01]}  g6 {[%clk 0:02:31]} 21. g3 {[%clk 0:01:56]}  Nd4 {[%clk 0:02:16]} 22. f4 {[%clk 0:01:46]}  Bh6 {[%clk 0:02:17]} 23. f5 {[%clk 0:01:39]}  f6 {[%clk 0:02:13]} 24. Kh1 {[%clk 0:01:29]}  Kg7 {[%clk 0:02:11]} 25. Rg1 {[%clk 0:01:11]}  a4 {[%clk 0:02:10]} 26. Rg2 {[%clk 0:01:10]}  b3 {[%clk 0:02:06]} 27. a3 {[%clk 0:01:10]}  gxf5 {[%clk 0:01:56]} 28. Bxf5 {[%clk 0:01:09]}  Qe8 {[%clk 0:01:46]} 29. g4 {[%clk 0:00:56]}  Kh8 {[%clk 0:01:46]} 30. h4 {[%clk 0:00:53]}  Nxf5 {[%clk 0:01:20]} 31. exf5 {[%clk 0:00:46]}  Bg7 {[%clk 0:01:09]} 32. Qh3 {[%clk 0:00:39]}  e4 {[%clk 0:01:07]} 33. Re2 {[%clk 0:00:32]}  Qe5 {[%clk 0:01:07]} 34. Qh2 {[%clk 0:00:30]}  h5 {[%clk 0:00:55]} 35. Qxe5 {[%clk 0:00:29]}  fxe5 {[%clk 0:00:56]} 36. Rxe4 {[%clk 0:00:22]}  hxg4 {[%clk 0:00:56]} 37. Rxg4 {[%clk 0:00:22]}  Rxf5 {[%clk 0:00:57]} 38. Rdg1 {[%clk 0:00:23]}  Bh6 {[%clk 0:00:57]} 39. R1g2 {[%clk 0:00:19]}  Rbf8 {[%clk 0:00:54]} 40. Kh2 {[%clk 0:00:19]}  R5f7 {[%clk 0:00:47]} 41. Nc3 {[%clk 0:00:18]}  Bf4+ {[%clk 0:00:46]} 42. Kh3 {[%clk 0:00:18]}  Rd7 {[%clk 0:00:38]} 43. Nxa4 {[%clk 0:00:15]}  d5 {[%clk 0:00:38]} 44. Nb6 {[%clk 0:00:15]}  Rc7 {[%clk 0:00:35]} 45. Nxd5 {[%clk 0:00:15]}  Rxc4 {[%clk 0:00:34]} 46. Ne7 {[%clk 0:00:16]}  Rf6 {[%clk 0:00:21]} 47. Rg8+ {[%clk 0:00:15]}  Kh7 {[%clk 0:00:21]} 48. R2g7+ {[%clk 0:00:16]}  Kh6 {[%clk 0:00:19]} 49. Rg4 {[%clk 0:00:11]}  Kh7 {[%clk 0:00:18]} 50. R8g7+ {[%clk 0:00:09]}  Kh8 {[%clk 0:00:16]} 51. Ng6+ {[%clk 0:00:09]}  Kxg7 {[%clk 0:00:16]} 52. Nxe5+ {[%clk 0:00:10]}  Kf8 {[%clk 0:00:13]} 53. Nxc4 {[%clk 0:00:11]}  Re6 {[%clk 0:00:13]} 54. Rxf4+ {[%clk 0:00:10]}  Ke7 {[%clk 0:00:13]} 55. Kg4 {[%clk 0:00:10]}  Re2 {[%clk 0:00:14]} 56. Kf5 {[%clk 0:00:10]}  Rc2 {[%clk 0:00:14]} 57. Re4+ {[%clk 0:00:10]}  Kf7 {[%clk 0:00:13]} 58. Ke5 {[%clk 0:00:10]}  Rxb2 {[%clk 0:00:13]} 59. Nxb2 {[%clk 0:00:10]} 1-0


[Site "https://www.chess.com"]

[Event "Titled Tuesday Blitz March 15 Late 2022"]
[White "Papasimakopoulos, Alexandros"]
[Black "Demchenko, Anton"]
[WhiteFideId "4244125"]
[BlackFideId "4160258"]
[WhiteElo "2340"]
[BlackElo "2539"]
[Result "1-0"]
[Round "10"]
[TimeControl "180+1"]
[Date "2022.03.15"]
[WhiteClock "0:00:13"]
[BlackClock "0:00:04"]

1. d4 {[%clk 0:03:00]}  Nf6 {[%clk 0:03:00]} 2. c4 {[%clk 0:03:00]}  d6 {[%clk 0:03:01]} 3. Nc3 {[%clk 0:03:00]}  e5 {[%clk 0:03:01]} 4. Nf3 {[%clk 0:03:00]}  Nc6 {[%clk 0:03:02]} 5. Bg5 {[%clk 0:03:00]}  h5 {[%clk 0:03:00]} 6. e3 {[%clk 0:02:58]}  Be7 {[%clk 0:02:57]} 7. Qc2 {[%clk 0:02:56]}  exd4 {[%clk 0:02:50]} 8. exd4 {[%clk 0:02:55]}  Bg4 {[%clk 0:02:49]} 9. d5 {[%clk 0:02:49]}  Bxf3 {[%clk 0:02:35]} 10. gxf3 {[%clk 0:02:50]}  Ne5 {[%clk 0:02:36]} 11. f4 {[%clk 0:02:49]}  Nf3+ {[%clk 0:02:29]} 12. Kd1 {[%clk 0:02:47]}  Qd7 {[%clk 0:01:17]} 13. Bxf6 {[%clk 0:02:35]}  gxf6 {[%clk 0:01:18]} 14. Be2 {[%clk 0:02:36]}  Nd4 {[%clk 0:01:14]} 15. Qe4 {[%clk 0:02:33]}  Nxe2 {[%clk 0:01:12]} 16. Nxe2 {[%clk 0:02:29]}  O-O-O {[%clk 0:01:07]} 17. Ng3 {[%clk 0:02:24]}  h4 {[%clk 0:00:58]} 18. Nf5 {[%clk 0:02:18]}  Rde8 {[%clk 0:00:59]} 19. Re1 {[%clk 0:01:40]}  Bd8 {[%clk 0:00:59]} 20. Qd3 {[%clk 0:01:39]}  Reg8 {[%clk 0:00:54]} 21. Ne3 {[%clk 0:01:34]}  h3 {[%clk 0:00:44]} 22. Kc2 {[%clk 0:01:32]}  f5 {[%clk 0:00:41]} 23. Rg1 {[%clk 0:01:31]}  Re8 {[%clk 0:00:36]} 24. Nxf5 {[%clk 0:01:23]}  Rh7 {[%clk 0:00:26]} 25. Rae1 {[%clk 0:01:15]}  Rxe1 {[%clk 0:00:23]} 26. Rxe1 {[%clk 0:01:16]}  Rh8 {[%clk 0:00:23]} 27. Ng3 {[%clk 0:01:11]}  Rh4 {[%clk 0:00:20]} 28. Qe4 {[%clk 0:01:04]}  a6 {[%clk 0:00:14]} 29. a3 {[%clk 0:00:58]}  Rg4 {[%clk 0:00:11]} 30. Kb3 {[%clk 0:00:54]}  b5 {[%clk 0:00:10]} 31. Re3 {[%clk 0:00:53]}  bxc4+ {[%clk 0:00:10]} 32. Qxc4 {[%clk 0:00:54]}  Kb7 {[%clk 0:00:08]} 33. Ka2 {[%clk 0:00:54]}  Bf6 {[%clk 0:00:06]} 34. Rb3+ {[%clk 0:00:54]}  Ka7 {[%clk 0:00:07]} 35. Qb4 {[%clk 0:00:51]}  Qc8 {[%clk 0:00:07]} 36. Nf1 {[%clk 0:00:41]}  Be5 {[%clk 0:00:07]} 37. Rf3 {[%clk 0:00:34]}  Qf5 {[%clk 0:00:05]} 38. Rb3 {[%clk 0:00:31]}  Qc8 {[%clk 0:00:04]} 39. Ne3 {[%clk 0:00:24]}  Rxf4 {[%clk 0:00:05]} 40. Nc4 {[%clk 0:00:24]}  Bf6 {[%clk 0:00:04]} 41. f3 {[%clk 0:00:20]}  Qa8 {[%clk 0:00:03]} 42. a4 {[%clk 0:00:17]}  Rd4 {[%clk 0:00:03]} 43. Kb1 {[%clk 0:00:14]}  Rxd5 {[%clk 0:00:03]} 44. Na5 {[%clk 0:00:14]}  Rc5 {[%clk 0:00:03]} 45. Qe1 {[%clk 0:00:11]}  Be5 {[%clk 0:00:03]} 46. Rb7+ {[%clk 0:00:11]}  Qxb7 {[%clk 0:00:04]} 47. Nxb7 {[%clk 0:00:12]}  Kxb7 {[%clk 0:00:05]} 48. Qf1 {[%clk 0:00:11]}  Rc6 {[%clk 0:00:04]} 49. Qxh3 {[%clk 0:00:11]}  Rb6 {[%clk 0:00:04]} 50. Qg2 {[%clk 0:00:11]}  Rb4 {[%clk 0:00:04]} 51. f4+ {[%clk 0:00:12]}  Kb6 {[%clk 0:00:03]} 52. fxe5 {[%clk 0:00:11]}  dxe5 {[%clk 0:00:04]} 53. Qf2+ {[%clk 0:00:11]}  Kc6 {[%clk 0:00:04]} 54. Qxf7 {[%clk 0:00:12]}  Rxa4 {[%clk 0:00:03]} 55. Qe8+ {[%clk 0:00:12]}  Kd5 {[%clk 0:00:04]} 56. Qxa4 {[%clk 0:00:13]} 1-0


[Site "https://www.chess.com"]

[Event "Titled Tuesday Blitz March 15 Late 2022"]
[White "Pesotskiy, Mikhail"]
[Black "Aldokhin, Ivan"]
[WhiteFideId "34164453"]
[BlackFideId "24115720"]
[WhiteElo "2010"]
[BlackElo "2231"]
[Result "1-0"]
[Round "10"]
[TimeControl "180+1"]
[Date "2022.03.15"]
[WhiteClock "0:00:49"]
[BlackClock "0:00:02"]

1. d4 {[%clk 0:03:00]}  e6 {[%clk 0:03:00]} 2. c4 {[%clk 0:02:59]}  d5 {[%clk 0:03:00]} 3. Nc3 {[%clk 0:02:59]}  Ne7 {[%clk 0:03:01]} 4. Bf4 {[%clk 0:02:54]}  a6 {[%clk 0:03:01]} 5. Nf3 {[%clk 0:02:45]}  dxc4 {[%clk 0:03:00]} 6. a4 {[%clk 0:02:45]}  Nd5 {[%clk 0:03:00]} 7. Bg5 {[%clk 0:02:42]}  Be7 {[%clk 0:02:48]} 8. Bxe7 {[%clk 0:02:42]}  Qxe7 {[%clk 0:02:47]} 9. e4 {[%clk 0:02:43]}  Nxc3 {[%clk 0:02:29]} 10. bxc3 {[%clk 0:02:44]}  O-O {[%clk 0:02:27]} 11. Bxc4 {[%clk 0:02:44]}  b6 {[%clk 0:02:27]} 12. O-O {[%clk 0:02:43]}  Bb7 {[%clk 0:02:27]} 13. Qe2 {[%clk 0:02:42]}  Nd7 {[%clk 0:02:23]} 14. e5 {[%clk 0:02:18]}  c5 {[%clk 0:02:17]} 15. Rab1 {[%clk 0:02:18]}  cxd4 {[%clk 0:02:16]} 16. cxd4 {[%clk 0:02:19]}  Rfc8 {[%clk 0:02:14]} 17. Bd3 {[%clk 0:02:17]}  h6 {[%clk 0:02:02]} 18. Rfc1 {[%clk 0:02:07]}  Qa3 {[%clk 0:01:58]} 19. Rxc8+ {[%clk 0:02:03]}  Rxc8 {[%clk 0:01:59]} 20. Bxa6 {[%clk 0:02:03]}  Rc1+ {[%clk 0:01:48]} 21. Rxc1 {[%clk 0:02:01]}  Qxc1+ {[%clk 0:01:48]} 22. Qf1 {[%clk 0:02:02]}  Qxf1+ {[%clk 0:01:45]} 23. Bxf1 {[%clk 0:02:03]}  Bxf3 {[%clk 0:01:44]} 24. gxf3 {[%clk 0:02:03]}  g5 {[%clk 0:01:20]} 25. Kg2 {[%clk 0:01:31]}  Nf8 {[%clk 0:01:18]} 26. Bd3 {[%clk 0:01:23]}  f5 {[%clk 0:01:18]} 27. exf6 {[%clk 0:01:17]}  Kf7 {[%clk 0:01:15]} 28. f4 {[%clk 0:01:18]}  Kxf6 {[%clk 0:01:09]} 29. fxg5+ {[%clk 0:01:16]}  hxg5 {[%clk 0:01:10]} 30. Kf3 {[%clk 0:01:07]}  e5 {[%clk 0:00:52]} 31. Ke4 {[%clk 0:01:07]}  exd4 {[%clk 0:00:49]} 32. Kxd4 {[%clk 0:01:07]}  Ke6 {[%clk 0:00:42]} 33. Kc4 {[%clk 0:01:04]}  Nd7 {[%clk 0:00:19]} 34. Kb5 {[%clk 0:01:03]}  Nc5 {[%clk 0:00:17]} 35. Bc2 {[%clk 0:01:02]}  Kd5 {[%clk 0:00:04]} 36. Kxb6 {[%clk 0:00:53]}  Nd7+ {[%clk 0:00:02]} 37. Kb5 {[%clk 0:00:49]} 1-0


[Site "https://www.chess.com"]

[Event "Titled Tuesday Blitz March 15 Late 2022"]
[White "Pichot, Alan"]
[Black "Nakamura, Hikaru"]
[WhiteFideId "110973"]
[BlackFideId "2016192"]
[WhiteElo "2579"]
[BlackElo "2850"]
[Result "0-1"]
[Round "10"]
[TimeControl "180+1"]
[Date "2022.03.15"]
[WhiteClock "0:00:05"]
[BlackClock "0:00:15"]

1. e4 {[%clk 0:02:59]}  c5 {[%clk 0:02:59]} 2. Nf3 {[%clk 0:02:59]}  e6 {[%clk 0:02:59]} 3. d4 {[%clk 0:02:59]}  cxd4 {[%clk 0:03:00]} 4. Nxd4 {[%clk 0:03:00]}  a6 {[%clk 0:03:01]} 5. c4 {[%clk 0:02:58]}  Nf6 {[%clk 0:03:00]} 6. Nc3 {[%clk 0:02:58]}  Qc7 {[%clk 0:03:01]} 7. Be2 {[%clk 0:02:52]}  Nc6 {[%clk 0:03:01]} 8. O-O {[%clk 0:02:44]}  Nxd4 {[%clk 0:02:59]} 9. Qxd4 {[%clk 0:02:45]}  Bc5 {[%clk 0:02:59]} 10. Qd3 {[%clk 0:02:44]}  d6 {[%clk 0:03:00]} 11. Bf4 {[%clk 0:02:40]}  h6 {[%clk 0:02:58]} 12. Rfd1 {[%clk 0:02:33]}  e5 {[%clk 0:02:58]} 13. Be3 {[%clk 0:02:34]}  Bxe3 {[%clk 0:02:46]} 14. Qxe3 {[%clk 0:02:26]}  Be6 {[%clk 0:02:44]} 15. b3 {[%clk 0:02:20]}  O-O {[%clk 0:02:44]} 16. Rd2 {[%clk 0:02:20]}  Rac8 {[%clk 0:02:44]} 17. Rad1 {[%clk 0:02:19]}  Rfd8 {[%clk 0:02:44]} 18. Na4 {[%clk 0:02:17]}  Qc6 {[%clk 0:02:35]} 19. Nb6 {[%clk 0:01:53]}  Rb8 {[%clk 0:02:32]} 20. c5 {[%clk 0:01:33]}  Qxe4 {[%clk 0:02:11]} 21. Rxd6 {[%clk 0:01:25]}  Rxd6 {[%clk 0:02:08]} 22. cxd6 {[%clk 0:01:16]}  Qxe3 {[%clk 0:02:02]} 23. fxe3 {[%clk 0:01:17]}  Rd8 {[%clk 0:02:02]} 24. Bc4 {[%clk 0:01:17]}  Bg4 {[%clk 0:01:55]} 25. Rd2 {[%clk 0:01:12]}  Ne4 {[%clk 0:01:53]} 26. Rd5 {[%clk 0:00:57]}  Rxd6 {[%clk 0:01:50]} 27. h3 {[%clk 0:00:52]}  Rxb6 {[%clk 0:01:19]} 28. hxg4 {[%clk 0:00:52]}  Kf8 {[%clk 0:00:58]} 29. Rxe5 {[%clk 0:00:49]}  Nd6 {[%clk 0:00:58]} 30. Be2 {[%clk 0:00:47]}  Rc6 {[%clk 0:00:57]} 31. Rd5 {[%clk 0:00:36]}  Ke7 {[%clk 0:00:56]} 32. Rd2 {[%clk 0:00:36]}  Rc3 {[%clk 0:00:56]} 33. Bd3 {[%clk 0:00:33]}  Ke6 {[%clk 0:00:53]} 34. Kf2 {[%clk 0:00:33]}  Ke5 {[%clk 0:00:53]} 35. Kf3 {[%clk 0:00:34]}  f6 {[%clk 0:00:48]} 36. Bg6 {[%clk 0:00:34]}  a5 {[%clk 0:00:44]} 37. Bh7 {[%clk 0:00:32]}  Rc8 {[%clk 0:00:39]} 38. Bg6 {[%clk 0:00:31]}  b6 {[%clk 0:00:38]} 39. Bh7 {[%clk 0:00:27]}  Rd8 {[%clk 0:00:33]} 40. Rc2 {[%clk 0:00:22]}  Nf7 {[%clk 0:00:32]} 41. Bg6 {[%clk 0:00:20]}  Ng5+ {[%clk 0:00:32]} 42. Ke2 {[%clk 0:00:20]}  Ne6 {[%clk 0:00:32]} 43. Rc6 {[%clk 0:00:19]}  Rd6 {[%clk 0:00:32]} 44. Rc4 {[%clk 0:00:19]}  Nc5 {[%clk 0:00:31]} 45. b4 {[%clk 0:00:18]}  axb4 {[%clk 0:00:30]} 46. Rxb4 {[%clk 0:00:19]}  Rc6 {[%clk 0:00:29]} 47. Be8 {[%clk 0:00:17]}  Rc8 {[%clk 0:00:28]} 48. Bg6 {[%clk 0:00:17]}  Rb8 {[%clk 0:00:28]} 49. a4 {[%clk 0:00:17]}  Kd6 {[%clk 0:00:27]} 50. a5 {[%clk 0:00:16]}  b5 {[%clk 0:00:27]} 51. Rd4+ {[%clk 0:00:13]}  Kc7 {[%clk 0:00:25]} 52. Rd5 {[%clk 0:00:12]}  Kc6 {[%clk 0:00:26]} 53. e4 {[%clk 0:00:09]}  Ra8 {[%clk 0:00:25]} 54. Kd2 {[%clk 0:00:07]}  Nb3+ {[%clk 0:00:21]} 55. Kc3 {[%clk 0:00:07]}  Nxa5 {[%clk 0:00:21]} 56. Kb4 {[%clk 0:00:08]}  Nc4 {[%clk 0:00:19]} 57. Rxb5 {[%clk 0:00:05]}  Ne5 {[%clk 0:00:20]} 58. Bf5 {[%clk 0:00:04]}  Nd3+ {[%clk 0:00:18]} 59. Kc4 {[%clk 0:00:04]}  Ne5+ {[%clk 0:00:16]} 60. Kb4 {[%clk 0:00:04]}  Ra2 {[%clk 0:00:15]} 61. Rc5+ {[%clk 0:00:03]}  Kd6 {[%clk 0:00:14]} 62. Rd5+ {[%clk 0:00:03]}  Ke7 {[%clk 0:00:14]} 63. Rb5 {[%clk 0:00:03]}  g6 {[%clk 0:00:12]} 64. Bc8 {[%clk 0:00:02]}  Rxg2 {[%clk 0:00:12]} 65. Rb7+ {[%clk 0:00:01]}  Kd8 {[%clk 0:00:13]} 66. Be6 {[%clk 0:00:01]}  Rb2+ {[%clk 0:00:12]} 67. Bb3 {[%clk 0:00:02]}  Nc6+ {[%clk 0:00:11]} 68. Kc3 {[%clk 0:00:02]}  Rg2 {[%clk 0:00:12]} 69. Bd5 {[%clk 0:00:02]}  Ne5 {[%clk 0:00:12]} 70. Kd4 {[%clk 0:00:03]}  Rc2 {[%clk 0:00:07]} 71. Rg7 {[%clk 0:00:03]}  Rc7 {[%clk 0:00:07]} 72. Rg8+ {[%clk 0:00:03]}  Ke7 {[%clk 0:00:07]} 73. Rh8 {[%clk 0:00:03]}  Nxg4 {[%clk 0:00:07]} 74. Rh7+ {[%clk 0:00:03]}  Kd6 {[%clk 0:00:07]} 75. Rh8 {[%clk 0:00:03]}  Ne5 {[%clk 0:00:08]} 76. Rxh6 {[%clk 0:00:02]}  Ra7 {[%clk 0:00:07]} 77. Rh8 {[%clk 0:00:02]}  Ra4+ {[%clk 0:00:08]} 78. Ke3 {[%clk 0:00:03]}  Ra3+ {[%clk 0:00:09]} 79. Ke2 {[%clk 0:00:03]}  Kc5 {[%clk 0:00:09]} 80. Rb8 {[%clk 0:00:02]}  Rh3 {[%clk 0:00:09]} 81. Kf2 {[%clk 0:00:03]}  Kd4 {[%clk 0:00:09]} 82. Rb4+ {[%clk 0:00:03]}  Kc5 {[%clk 0:00:09]} 83. Ra4 {[%clk 0:00:03]}  Nd3+ {[%clk 0:00:10]} 84. Kg2 {[%clk 0:00:03]}  Nf4+ {[%clk 0:00:10]} 85. Kf2 {[%clk 0:00:04]}  Nxd5 {[%clk 0:00:07]} 86. Ra5+ {[%clk 0:00:04]}  Kd4 {[%clk 0:00:07]} 87. exd5 {[%clk 0:00:04]}  Ke5 {[%clk 0:00:08]} 88. Ra6 {[%clk 0:00:04]}  Rd3 {[%clk 0:00:08]} 89. Re6+ {[%clk 0:00:03]}  Kf5 {[%clk 0:00:09]} 90. Rd6 {[%clk 0:00:03]}  g5 {[%clk 0:00:09]} 91. Ke2 {[%clk 0:00:03]}  Rd4 {[%clk 0:00:10]} 92. Ke3 {[%clk 0:00:04]}  Rd1 {[%clk 0:00:10]} 93. Ke2 {[%clk 0:00:04]}  Ra1 {[%clk 0:00:11]} 94. Rd8 {[%clk 0:00:04]}  Ra5 {[%clk 0:00:10]} 95. d6 {[%clk 0:00:05]}  Rd5 {[%clk 0:00:09]} 96. Ke3 {[%clk 0:00:05]}  Ke5 {[%clk 0:00:10]} 97. Re8+ {[%clk 0:00:04]}  Kxd6 {[%clk 0:00:10]} 98. Rf8 {[%clk 0:00:02]}  Ke6 {[%clk 0:00:10]} 99. Re8+ {[%clk 0:00:02]}  Kf5 {[%clk 0:00:10]} 100. Ra8 {[%clk 0:00:02]}  Re5+ {[%clk 0:00:11]} 101. Kf3 {[%clk 0:00:02]}  Rb5 {[%clk 0:00:12]} 102. Ra3 {[%clk 0:00:02]}  Kg6 {[%clk 0:00:12]} 103. Kg3 {[%clk 0:00:02]}  f5 {[%clk 0:00:13]} 104. Rc3 {[%clk 0:00:02]}  Kh5 {[%clk 0:00:13]} 105. Kh3 {[%clk 0:00:02]}  Rb4 {[%clk 0:00:13]} 106. Kg2 {[%clk 0:00:03]}  Rg4+ {[%clk 0:00:13]} 107. Kf2 {[%clk 0:00:03]}  Rh4 {[%clk 0:00:14]} 108. Kg3 {[%clk 0:00:02]}  f4+ {[%clk 0:00:15]} 109. Kg2 {[%clk 0:00:03]}  Kg4 {[%clk 0:00:15]} 110. Ra3 {[%clk 0:00:03]}  Rh6 {[%clk 0:00:16]} 111. Rb3 {[%clk 0:00:03]}  Re6 {[%clk 0:00:16]} 112. Rb2 {[%clk 0:00:03]}  Re2+ {[%clk 0:00:14]} 113. Rxe2 {[%clk 0:00:03]}  f3+ {[%clk 0:00:15]} 114. Kf2 {[%clk 0:00:04]}  fxe2 {[%clk 0:00:15]} 115. Kxe2 {[%clk 0:00:05]}  Kg3 {[%clk 0:00:15]} 0-1


[Site "https://www.chess.com"]

[Event "Titled Tuesday Blitz March 15 Late 2022"]
[White "Piliczewski, Bogusz"]
[Black "Curtis, John"]
[WhiteFideId "1104144"]
[BlackFideId "3200256"]
[WhiteElo "1896"]
[BlackElo "2203"]
[Result "0-1"]
[Round "10"]
[TimeControl "180+1"]
[Date "2022.03.16"]
[WhiteClock "0:00:04"]
[BlackClock "0:00:06"]

1. d4 {[%clk 0:03:00]}  Nf6 {[%clk 0:02:59]} 2. Nf3 {[%clk 0:03:00]}  e6 {[%clk 0:02:53]} 3. Bf4 {[%clk 0:02:58]}  d5 {[%clk 0:02:49]} 4. e3 {[%clk 0:02:44]}  Bd6 {[%clk 0:02:47]} 5. Ne5 {[%clk 0:02:42]}  Nfd7 {[%clk 0:02:42]} 6. Bd3 {[%clk 0:02:38]}  Nc6 {[%clk 0:02:34]} 7. Qh5 {[%clk 0:02:17]}  Bxe5 {[%clk 0:02:23]} 8. dxe5 {[%clk 0:02:07]}  g6 {[%clk 0:02:18]} 9. Qh6 {[%clk 0:01:58]}  Qe7 {[%clk 0:01:56]} 10. Bb5 {[%clk 0:01:39]}  Qb4+ {[%clk 0:01:45]} 11. Nc3 {[%clk 0:01:37]}  Qxb2 {[%clk 0:01:45]} 12. Kd2 {[%clk 0:01:15]}  Qb4 {[%clk 0:01:29]} 13. Bxc6 {[%clk 0:01:07]}  bxc6 {[%clk 0:01:28]} 14. Qg7 {[%clk 0:01:01]}  Qf8 {[%clk 0:01:23]} 15. Bh6 {[%clk 0:00:58]}  Qxg7 {[%clk 0:01:22]} 16. Bxg7 {[%clk 0:00:58]}  Rg8 {[%clk 0:01:22]} 17. Bf6 {[%clk 0:00:58]}  Nxf6 {[%clk 0:01:18]} 18. exf6 {[%clk 0:00:58]}  e5 {[%clk 0:01:18]} 19. f4 {[%clk 0:00:40]}  exf4 {[%clk 0:01:18]} 20. exf4 {[%clk 0:00:39]}  Be6 {[%clk 0:00:45]} 21. h3 {[%clk 0:00:34]}  Kd7 {[%clk 0:00:45]} 22. g4 {[%clk 0:00:32]}  Kd6 {[%clk 0:00:41]} 23. g5 {[%clk 0:00:31]}  Rab8 {[%clk 0:00:29]} 24. Rab1 {[%clk 0:00:28]}  Rb6 {[%clk 0:00:25]} 25. Rxb6 {[%clk 0:00:23]}  axb6 {[%clk 0:00:22]} 26. h4 {[%clk 0:00:23]}  c5 {[%clk 0:00:22]} 27. h5 {[%clk 0:00:22]}  c6 {[%clk 0:00:18]} 28. hxg6 {[%clk 0:00:20]}  hxg6 {[%clk 0:00:18]} 29. Rh7 {[%clk 0:00:19]}  b5 {[%clk 0:00:18]} 30. Ne2 {[%clk 0:00:14]}  Ra8 {[%clk 0:00:15]} 31. Nc1 {[%clk 0:00:11]}  Ra4 {[%clk 0:00:14]} 32. Rh4 {[%clk 0:00:08]}  c4 {[%clk 0:00:07]} 33. c3 {[%clk 0:00:06]}  c5 {[%clk 0:00:06]} 34. Rh8 {[%clk 0:00:04]}  b4 {[%clk 0:00:06]} 0-1


[Site "https://www.chess.com"]

[Event "Titled Tuesday Blitz March 15 Late 2022"]
[White "Plazuelo Pascual, Juan"]
[Black "Lock, Gavin R"]
[WhiteFideId "32059566"]
[BlackFideId "408646"]
[WhiteElo "2364"]
[BlackElo "2104"]
[Result "1-0"]
[Round "10"]
[TimeControl "180+1"]
[Date "2022.03.16"]
[WhiteClock "0:02:05"]
[BlackClock "0:00:01"]

1. Nf3 {[%clk 0:03:00]}  d5 {[%clk 0:02:59]} 2. g3 {[%clk 0:03:00]}  c5 {[%clk 0:02:59]} 3. Bg2 {[%clk 0:03:00]}  Nc6 {[%clk 0:03:00]} 4. d4 {[%clk 0:03:01]}  Nf6 {[%clk 0:02:59]} 5. O-O {[%clk 0:03:01]}  e6 {[%clk 0:02:59]} 6. c4 {[%clk 0:03:01]}  dxc4 {[%clk 0:03:00]} 7. Ne5 {[%clk 0:03:00]}  Bd7 {[%clk 0:02:59]} 8. Nxc4 {[%clk 0:02:56]}  cxd4 {[%clk 0:02:52]} 9. Bf4 {[%clk 0:02:51]}  Be7 {[%clk 0:02:51]} 10. Nd6+ {[%clk 0:02:51]}  Kf8 {[%clk 0:02:51]} 11. Nxb7 {[%clk 0:02:51]}  Qb6 {[%clk 0:02:51]} 12. Nd6 {[%clk 0:02:47]}  Qc5 {[%clk 0:02:44]} 13. b4 {[%clk 0:02:45]}  Qxb4 {[%clk 0:02:33]} 14. a3 {[%clk 0:02:45]}  Qc5 {[%clk 0:02:24]} 15. Qb3 {[%clk 0:02:45]}  Rb8 {[%clk 0:00:43]} 16. Nb7 {[%clk 0:02:37]}  e5 {[%clk 0:00:27]} 17. Nxc5 {[%clk 0:02:36]}  Rxb3 {[%clk 0:00:28]} 18. Nxb3 {[%clk 0:02:36]}  exf4 {[%clk 0:00:28]} 19. Rc1 {[%clk 0:02:33]}  Ne5 {[%clk 0:00:21]} 20. Nxd4 {[%clk 0:02:33]}  fxg3 {[%clk 0:00:17]} 21. hxg3 {[%clk 0:02:34]}  g6 {[%clk 0:00:13]} 22. Nc3 {[%clk 0:02:35]}  Kg7 {[%clk 0:00:13]} 23. Nd5 {[%clk 0:02:35]}  Nxd5 {[%clk 0:00:12]} 24. Bxd5 {[%clk 0:02:36]}  Bf6 {[%clk 0:00:11]} 25. e3 {[%clk 0:02:35]}  h5 {[%clk 0:00:10]} 26. Rc7 {[%clk 0:02:35]}  Bg4 {[%clk 0:00:09]} 27. f4 {[%clk 0:02:32]}  Nf3+ {[%clk 0:00:07]} 28. Bxf3 {[%clk 0:02:19]}  Bxf3 {[%clk 0:00:07]} 29. Rb1 {[%clk 0:02:14]}  Bxd4 {[%clk 0:00:05]} 30. exd4 {[%clk 0:02:13]}  Rd8 {[%clk 0:00:05]} 31. Kf2 {[%clk 0:02:13]}  Be4 {[%clk 0:00:05]} 32. Rd1 {[%clk 0:02:13]}  Rd6 {[%clk 0:00:02]} 33. Rxa7 {[%clk 0:02:09]}  Bf5 {[%clk 0:00:02]} 34. d5 {[%clk 0:02:06]}  Kf6 {[%clk 0:00:01]} 35. a4 {[%clk 0:02:05]}  Bg4 {[%clk 0:00:01]} 36. Rd2 {[%clk 0:02:05]}  Bf5 {[%clk 0:00:01]} 37. a5 {[%clk 0:02:05]} 1-0


[Site "https://www.chess.com"]